[Event "Late-Titled-Tuesday-Blitz-September-19-2023"]
[Site "Chess.com"]
[Date "2023.09.19"]
[Round "1"]
[White "jup1978"]
[Black "krzyzan94"]
[Result "1/2-1/2"]
[WhiteElo "2467"]
[BlackElo "2803"]
[TimeControl "180+1"]
[EndTime "14:08:33 PDT"]
[Termination "Game drawn by repetition"]

1. d4 {[%clk 0:02:59.1]} 1... Nf6 {[%clk 0:02:59.2]} 2. Nf3 {[%clk 0:02:55.3]}
2... e6 {[%clk 0:02:56.6]} 3. g3 {[%clk 0:02:51.7]} 3... d5 {[%clk 0:02:54.3]}
4. Bg2 {[%clk 0:02:52.6]} 4... b5 {[%clk 0:02:52.8]} 5. O-O {[%clk 0:02:52.6]}
5... Bb7 {[%clk 0:02:50.6]} 6. b3 {[%clk 0:02:52]} 6... Nbd7 {[%clk 0:02:50.1]}
7. Bb2 {[%clk 0:02:51]} 7... c5 {[%clk 0:02:46.1]} 8. Nbd2 {[%clk 0:02:47.7]}
8... Be7 {[%clk 0:02:40.9]} 9. c4 {[%clk 0:02:41.9]} 9... bxc4 {[%clk
0:02:39.2]} 10. bxc4 {[%clk 0:02:41.7]} 10... O-O {[%clk 0:02:35.8]} 11. cxd5
{[%clk 0:02:41.6]} 11... Bxd5 {[%clk 0:02:31.9]} 12. Re1 {[%clk 0:02:21.5]}
12... cxd4 {[%clk 0:02:24]} 13. Bxd4 {[%clk 0:02:22.4]} 13... Ne4 {[%clk
0:02:07.6]} 14. Nxe4 {[%clk 0:02:15.4]} 14... Bxe4 {[%clk 0:02:08.5]} 15. Nd2
{[%clk 0:02:14.9]} 15... Bxg2 {[%clk 0:02:08.2]} 16. Kxg2 {[%clk 0:02:15.8]}
16... Qa5 {[%clk 0:01:56.4]} 17. Nb3 {[%clk 0:02:09.9]} 17... Qa4 {[%clk
0:01:48.5]} 18. Bb2 {[%clk 0:01:58.4]} 18... Bf6 {[%clk 0:01:40.8]} 19. Bxf6
{[%clk 0:01:57.3]} 19... Nxf6 {[%clk 0:01:41.7]} 20. Qd4 {[%clk 0:01:56.5]}
20... Qc6+ {[%clk 0:01:39.8]} 21. Kg1 {[%clk 0:01:52.6]} 21... Rfd8 {[%clk
0:01:39.7]} 22. Rac1 {[%clk 0:01:45.5]} 22... Qa6 {[%clk 0:01:24.1]} 23. Qb2
{[%clk 0:01:37.1]} 23... h5 {[%clk 0:01:22.5]} 24. h4 {[%clk 0:01:35.1]} 24...
Rd5 {[%clk 0:01:16.1]} 25. Red1 {[%clk 0:01:32]} 25... Rad8 {[%clk 0:01:14.6]}
26. Rxd5 {[%clk 0:01:29.2]} 26... Rxd5 {[%clk 0:01:12.1]} 27. Qc2 {[%clk
0:01:26]} 27... Rd8 {[%clk 0:01:02]} 28. Nc5 {[%clk 0:01:19.9]} 28... Qa3 {[%clk
0:00:56]} 29. Nd3 {[%clk 0:01:10.9]} 29... Nd5 {[%clk 0:00:51.6]} 30. Qb3 {[%clk
0:01:00.2]} 30... Qd6 {[%clk 0:00:39.4]} 31. Qc4 {[%clk 0:00:52.4]} 31... Nb6
{[%clk 0:00:37.1]} 32. Qc7 {[%clk 0:00:47.1]} 32... Rd7 {[%clk 0:00:12.9]} 33.
Qxd6 {[%clk 0:00:41.3]} 33... Rxd6 {[%clk 0:00:13.8]} 34. Rc7 {[%clk 0:00:40.9]}
34... a6 {[%clk 0:00:11.9]} 35. Ne5 {[%clk 0:00:33]} 35... f6 {[%clk 0:00:09.6]}
36. Ng6 {[%clk 0:00:29.9]} 36... Nd5 {[%clk 0:00:08]} 37. Ne7+ {[%clk
0:00:22.5]} 37... Nxe7 {[%clk 0:00:05.8]} 38. Rxe7 {[%clk 0:00:23.4]} 38... Kh7
{[%clk 0:00:05.6]} 39. Ra7 {[%clk 0:00:17.9]} 39... Kg6 {[%clk 0:00:05.8]} 40.
Kg2 {[%clk 0:00:15.7]} 40... e5 {[%clk 0:00:04.9]} 41. Kf3 {[%clk 0:00:15.5]}
41... Rb6 {[%clk 0:00:03.6]} 42. e3 {[%clk 0:00:15.4]} 42... Rc6 {[%clk
0:00:03]} 43. a4 {[%clk 0:00:15.7]} 43... Kh6 {[%clk 0:00:03.3]} 44. a5 {[%clk
0:00:14.6]} 44... f5 {[%clk 0:00:03.8]} 45. Kg2 {[%clk 0:00:14.5]} 45... e4
{[%clk 0:00:04]} 46. Kg1 {[%clk 0:00:14.2]} 46... Kg6 {[%clk 0:00:04.5]} 47. Kg2
{[%clk 0:00:14.6]} 47... Kf6 {[%clk 0:00:05]} 48. Kg1 {[%clk 0:00:15]} 48... g6
{[%clk 0:00:05.7]} 49. Kg2 {[%clk 0:00:15.4]} 49... Ke5 {[%clk 0:00:06.2]} 50.
Rb7 {[%clk 0:00:14]} 50... Kd5 {[%clk 0:00:06.6]} 51. Kf1 {[%clk 0:00:04.8]}
51... Kc5 {[%clk 0:00:06.6]} 52. Ke2 {[%clk 0:00:03.8]} 52... Rd6 {[%clk
0:00:07.1]} 53. Rb8 {[%clk 0:00:02.4]} 53... Kc4 {[%clk 0:00:07.1]} 54. Rb7
{[%clk 0:00:02.1]} 54... Kc3 {[%clk 0:00:06.5]} 55. Rb6 {[%clk 0:00:01.8]} 55...
Rd2+ {[%clk 0:00:06.5]} 56. Ke1 {[%clk 0:00:01.7]} 56... Ra2 {[%clk 0:00:04.4]}
57. Rxa6 {[%clk 0:00:01.1]} 57... Kd3 {[%clk 0:00:04.9]} 58. Kf1 {[%clk
0:00:01.4]} 58... Ra1+ {[%clk 0:00:04.8]} 59. Kg2 {[%clk 0:00:01.8]} 59... Ke2
{[%clk 0:00:05.7]} 60. Rb6 {[%clk 0:00:01.9]} 60... Rxa5 {[%clk 0:00:04.7]} 61.
Rxg6 {[%clk 0:00:02.8]} 61... Ra2 {[%clk 0:00:04.3]} 62. Rf6 {[%clk 0:00:03.2]}
62... Ra5 {[%clk 0:00:03.9]} 63. Rf7 {[%clk 0:00:03.8]} 63... Ke1 {[%clk
0:00:04]} 64. Rf6 {[%clk 0:00:04.1]} 64... Rb5 {[%clk 0:00:03.7]} 65. Rf7 {[%clk
0:00:04.6]} 65... Rc5 {[%clk 0:00:04.1]} 66. Rf6 {[%clk 0:00:05.2]} 66... Rd5
{[%clk 0:00:04.6]} 67. Rf7 {[%clk 0:00:05.8]} 67... Ke2 {[%clk 0:00:04.6]} 68.
Rf6 {[%clk 0:00:06.2]} 68... Ke1 {[%clk 0:00:05.1]} 69. Rf7 {[%clk 0:00:06.8]}
69... Rc5 {[%clk 0:00:05.4]} 70. Rf6 {[%clk 0:00:07.4]} 70... Rb5 {[%clk
0:00:05.4]} 71. Rf7 {[%clk 0:00:08]} 71... Rc5 {[%clk 0:00:05.7]} 1/2-1/2

[Event "Late-Titled-Tuesday-Blitz-September-19-2023"]
[Site "Chess.com"]
[Date "2023.09.19"]
[Round "1"]
[White "CFalcons8"]
[Black "stolencandy13"]
[Result "0-1"]
[WhiteElo "2249"]
[BlackElo "2552"]
[TimeControl "180+1"]
[EndTime "14:08:39 PDT"]
[Termination "stolencandy13 won on time"]

1. e4 {[%clk 0:02:59.7]} 1... c6 {[%clk 0:03:00.4]} 2. d4 {[%clk 0:02:58.3]}
2... d5 {[%clk 0:03:01.3]} 3. Nc3 {[%clk 0:02:56.9]} 3... dxe4 {[%clk
0:03:01.4]} 4. Nxe4 {[%clk 0:02:57.8]} 4... Bf5 {[%clk 0:03:01.8]} 5. Ng3 {[%clk
0:02:57.3]} 5... Bg6 {[%clk 0:03:02.3]} 6. h4 {[%clk 0:02:55.6]} 6... h6 {[%clk
0:03:02.1]} 7. Nf3 {[%clk 0:02:55]} 7... Nd7 {[%clk 0:03:01.7]} 8. h5 {[%clk
0:02:54.8]} 8... Bh7 {[%clk 0:03:02]} 9. Bd3 {[%clk 0:02:54.8]} 9... Bxd3 {[%clk
0:03:02.3]} 10. Qxd3 {[%clk 0:02:55.2]} 10... e6 {[%clk 0:03:03.2]} 11. Bf4
{[%clk 0:02:54.6]} 11... Qa5+ {[%clk 0:03:02.9]} 12. Bd2 {[%clk 0:02:54.3]}
12... Bb4 {[%clk 0:03:02.9]} 13. c3 {[%clk 0:02:54]} 13... Be7 {[%clk 0:03:03]}
14. c4 {[%clk 0:02:54]} 14... Qc7 {[%clk 0:03:03.4]} 15. O-O-O {[%clk
0:02:52.7]} 15... Ngf6 {[%clk 0:03:04.1]} 16. Kb1 {[%clk 0:02:52.1]} 16... O-O-O
{[%clk 0:03:03.2]} 17. Ne4 {[%clk 0:02:46]} 17... Rhe8 {[%clk 0:02:45.8]} 18.
Nxf6 {[%clk 0:02:29.3]} 18... Bxf6 {[%clk 0:02:45.3]} 19. Bc3 {[%clk 0:02:28.7]}
19... Nc5 {[%clk 0:02:31.8]} 20. Qe2 {[%clk 0:02:17.2]} 20... Na4 {[%clk
0:02:31.7]} 21. Bb4 {[%clk 0:02:10.5]} 21... Qb6 {[%clk 0:02:23.6]} 22. Qd2
{[%clk 0:01:48.3]} 22... Qa6 {[%clk 0:01:57.9]} 23. b3 {[%clk 0:01:47]} 23...
Nb6 {[%clk 0:01:54.9]} 24. Qc2 {[%clk 0:01:44.6]} 24... Nd7 {[%clk 0:01:48.3]}
25. Bc3 {[%clk 0:01:37.5]} 25... Kb8 {[%clk 0:01:45.4]} 26. Ne5 {[%clk
0:01:33.6]} 26... Nxe5 {[%clk 0:01:11.4]} 27. dxe5 {[%clk 0:01:34.5]} 27... Be7
{[%clk 0:01:11.1]} 28. Rxd8+ {[%clk 0:01:32.8]} 28... Rxd8 {[%clk 0:01:10.9]}
29. Rd1 {[%clk 0:01:26.8]} 29... Qb6 {[%clk 0:01:10.5]} 30. Rxd8+ {[%clk
0:01:22.8]} 30... Bxd8 {[%clk 0:01:07]} 31. Qd2 {[%clk 0:01:22.2]} 31... Kc8
{[%clk 0:01:00.7]} 32. Bd4 {[%clk 0:01:20.5]} 32... c5 {[%clk 0:00:53.2]} 33.
Bc3 {[%clk 0:01:10.2]} 33... Qc6 {[%clk 0:00:53.3]} 34. f3 {[%clk 0:01:08.6]}
34... Bc7 {[%clk 0:00:49.7]} 35. Qd3 {[%clk 0:01:05.2]} 35... Qd7 {[%clk
0:00:46.8]} 36. Kc2 {[%clk 0:00:59.8]} 36... Qe7 {[%clk 0:00:44.9]} 37. f4
{[%clk 0:00:46.4]} 37... Qh4 {[%clk 0:00:44.1]} 38. Qf3 {[%clk 0:00:43.8]} 38...
a6 {[%clk 0:00:36.9]} 39. Bd2 {[%clk 0:00:15.2]} 39... g6 {[%clk 0:00:33.2]} 40.
hxg6 {[%clk 0:00:13.4]} 40... fxg6 {[%clk 0:00:34.1]} 41. g3 {[%clk 0:00:12.4]}
41... Qh3 {[%clk 0:00:30.7]} 42. Qd3 {[%clk 0:00:09.2]} 42... Qf5 {[%clk
0:00:30]} 43. Qxf5 {[%clk 0:00:08]} 43... gxf5 {[%clk 0:00:30.9]} 44. Kd3 {[%clk
0:00:07.7]} 44... Kd7 {[%clk 0:00:30.9]} 45. Ke2 {[%clk 0:00:08.3]} 45... Ke7
{[%clk 0:00:31.1]} 46. Kf3 {[%clk 0:00:08.9]} 46... h5 {[%clk 0:00:30.1]} 47.
Kg2 {[%clk 0:00:09]} 47... Bd8 {[%clk 0:00:28.7]} 48. Be3 {[%clk 0:00:06.2]}
48... b6 {[%clk 0:00:24.6]} 49. a3 {[%clk 0:00:05.3]} 49... Kf7 {[%clk
0:00:24.4]} 50. b4 {[%clk 0:00:04]} 50... a5 {[%clk 0:00:15.6]} 51. bxa5 {[%clk
0:00:03.1]} 51... bxa5 {[%clk 0:00:15]} 52. a4 {[%clk 0:00:04]} 52... Be7 {[%clk
0:00:14.2]} 53. Kf3 {[%clk 0:00:03.9]} 53... Kg6 {[%clk 0:00:14.1]} 54. Bf2
{[%clk 0:00:03.7]} 54... Kf7 {[%clk 0:00:14.2]} 55. Be1 {[%clk 0:00:03.9]} 55...
Kg6 {[%clk 0:00:13.7]} 56. Bxa5 {[%clk 0:00:03.7]} 56... Kf7 {[%clk 0:00:13.6]}
57. Be1 {[%clk 0:00:03.7]} 57... Ke8 {[%clk 0:00:14.1]} 58. Bd2 {[%clk 0:00:02]}
58... Kd7 {[%clk 0:00:14.2]} 59. Ke3 {[%clk 0:00:01.8]} 59... Kc6 {[%clk
0:00:14.5]} 60. Kd3 {[%clk 0:00:02.7]} 60... Kb6 {[%clk 0:00:14.6]} 61. Kc3
{[%clk 0:00:03.1]} 61... Kc6 {[%clk 0:00:14.9]} 62. Kb3 {[%clk 0:00:03.8]} 62...
h4 {[%clk 0:00:15.3]} 63. gxh4 {[%clk 0:00:03]} 63... Bxh4 {[%clk 0:00:16.2]}
64. a5 {[%clk 0:00:03]} 64... Bg3 {[%clk 0:00:16]} 65. Ka4 {[%clk 0:00:03.5]}
65... Bf2 {[%clk 0:00:15.1]} 66. Bc1 {[%clk 0:00:03.7]} 66... Bd4 {[%clk
0:00:14.6]} 67. Bd2 {[%clk 0:00:03.6]} 67... Bf2 {[%clk 0:00:14.7]} 68. Bc3
{[%clk 0:00:02.9]} 68... Be3 {[%clk 0:00:14.7]} 69. a6 {[%clk 0:00:03.1]} 69...
Kb6 {[%clk 0:00:14.4]} 70. a7 {[%clk 0:00:02.6]} 70... Kxa7 {[%clk 0:00:14.4]}
71. Kb5 {[%clk 0:00:03.2]} 71... Kb7 {[%clk 0:00:14.8]} 72. Be1 {[%clk
0:00:02.2]} 72... Kc7 {[%clk 0:00:14.4]} 73. Bg3 {[%clk 0:00:01.5]} 73... Kb7
{[%clk 0:00:14.6]} 74. Bh2 {[%clk 0:00:01.9]} 74... Bf2 {[%clk 0:00:14.6]} 0-1

[Event "Late-Titled-Tuesday-Blitz-September-19-2023"]
[Site "Chess.com"]
[Date "2023.09.19"]
[Round "1"]
[White "MelihKaanCan"]
[Black "ArtemDyachuk"]
[Result "0-1"]
[WhiteElo "2425"]
[BlackElo "2711"]
[TimeControl "180+1"]
[EndTime "14:08:42 PDT"]
[Termination "ArtemDyachuk won on time"]

1. b3 {[%clk 0:02:56.8]} 1... d5 {[%clk 0:02:55.8]} 2. Bb2 {[%clk 0:02:57.7]}
2... c5 {[%clk 0:02:55.1]} 3. c4 {[%clk 0:02:56]} 3... d4 {[%clk 0:02:49.7]} 4.
e3 {[%clk 0:02:51.8]} 4... Nc6 {[%clk 0:02:49.4]} 5. Nf3 {[%clk 0:02:51]} 5...
Nf6 {[%clk 0:02:48.5]} 6. d3 {[%clk 0:02:33.4]} 6... g6 {[%clk 0:02:45.8]} 7.
Be2 {[%clk 0:02:32.5]} 7... Bg7 {[%clk 0:02:44.2]} 8. O-O {[%clk 0:02:33]} 8...
O-O {[%clk 0:02:43.9]} 9. Nbd2 {[%clk 0:02:32.3]} 9... dxe3 {[%clk 0:02:29.8]}
10. fxe3 {[%clk 0:02:31.2]} 10... Ng4 {[%clk 0:02:29.9]} 11. Bxg7 {[%clk
0:02:24.6]} 11... Nxe3 {[%clk 0:02:29.6]} 12. Qc1 {[%clk 0:02:12.8]} 12... Nxf1
{[%clk 0:02:22.7]} 13. Bxf8 {[%clk 0:02:03.2]} 13... Nxd2 {[%clk 0:02:20.9]} 14.
Qxd2 {[%clk 0:02:04.1]} 14... Qxf8 {[%clk 0:02:08.6]} 15. Rf1 {[%clk 0:01:58.8]}
15... Bf5 {[%clk 0:01:58]} 16. Nh4 {[%clk 0:01:52.9]} 16... Be6 {[%clk
0:01:51.1]} 17. Qg5 {[%clk 0:01:48.2]} 17... Qg7 {[%clk 0:01:41.1]} 18. Qxc5
{[%clk 0:01:45.6]} 18... Qb2 {[%clk 0:01:40]} 19. Bf3 {[%clk 0:01:41.4]} 19...
Qxa2 {[%clk 0:01:39.2]} 20. b4 {[%clk 0:01:24.2]} 20... Qa3 {[%clk 0:01:35.3]}
21. Bxc6 {[%clk 0:01:14.5]} 21... bxc6 {[%clk 0:01:36.2]} 22. Qxc6 {[%clk
0:00:56.3]} 22... Rd8 {[%clk 0:01:33.8]} 23. Nf3 {[%clk 0:00:46.4]} 23... Qxd3
{[%clk 0:01:30.4]} 24. Qc7 {[%clk 0:00:43.2]} 24... Bxc4 {[%clk 0:01:04.5]} 25.
Re1 {[%clk 0:00:43.1]} 25... Be6 {[%clk 0:00:51.8]} 26. Qxe7 {[%clk 0:00:36.4]}
26... a6 {[%clk 0:00:44.4]} 27. h3 {[%clk 0:00:28]} 27... Qd6 {[%clk 0:00:37.1]}
28. Qb7 {[%clk 0:00:27]} 28... Rb8 {[%clk 0:00:34.5]} 29. Qa7 {[%clk 0:00:15.9]}
29... Rxb4 {[%clk 0:00:17.5]} 30. Kh1 {[%clk 0:00:11.8]} 30... Rb8 {[%clk
0:00:12.8]} 31. Ng5 {[%clk 0:00:11.8]} 31... Bd5 {[%clk 0:00:08.8]} 32. Rd1
{[%clk 0:00:05]} 32... Rf8 {[%clk 0:00:08]} 33. Qd4 {[%clk 0:00:03.9]} 33... Rd8
{[%clk 0:00:08.3]} 34. Ne4 {[%clk 0:00:03.4]} 34... Qe6 {[%clk 0:00:02.3]} 35.
Nf6+ {[%clk 0:00:02.9]} 35... Kg7 {[%clk 0:00:02.9]} 36. Nxd5+ {[%clk
0:00:03.8]} 36... f6 {[%clk 0:00:03.8]} 37. Qc4 {[%clk 0:00:03.5]} 37... Rd7
{[%clk 0:00:02.9]} 38. Qc5 {[%clk 0:00:03.6]} 38... Qe5 {[%clk 0:00:02.1]} 39.
Rd4 {[%clk 0:00:03.7]} 39... a5 {[%clk 0:00:01.6]} 40. Qc6 {[%clk 0:00:02.9]}
40... Qxd4 {[%clk 0:00:01.5]} 41. Qxd7+ {[%clk 0:00:02.7]} 41... Kh6 {[%clk
0:00:02.4]} 42. Qe6 {[%clk 0:00:02.9]} 42... Qa1+ {[%clk 0:00:01.9]} 43. Kh2
{[%clk 0:00:03.2]} 43... Qe5+ {[%clk 0:00:02.1]} 44. Qxe5 {[%clk 0:00:03.6]}
44... fxe5 {[%clk 0:00:03]} 45. Nc3 {[%clk 0:00:04.4]} 45... Kg5 {[%clk
0:00:03.5]} 46. Kg3 {[%clk 0:00:04.9]} 46... Kf5 {[%clk 0:00:04]} 47. Kf3 {[%clk
0:00:05.6]} 47... h5 {[%clk 0:00:03.6]} 48. g3 {[%clk 0:00:05]} 48... Kg5 {[%clk
0:00:02]} 49. Ke4 {[%clk 0:00:05]} 49... Kf6 {[%clk 0:00:02]} 50. Na4 {[%clk
0:00:04.3]} 50... Ke6 {[%clk 0:00:02]} 51. Nb6 {[%clk 0:00:03.1]} 51... Kf6
{[%clk 0:00:02.4]} 52. Nc4 {[%clk 0:00:03.6]} 52... a4 {[%clk 0:00:02]} 53. Na3
{[%clk 0:00:02.3]} 53... Ke6 {[%clk 0:00:01.9]} 54. Nb5 {[%clk 0:00:02.8]} 54...
Kf6 {[%clk 0:00:01.9]} 55. Na3 {[%clk 0:00:03.3]} 55... Ke6 {[%clk 0:00:02.3]}
56. Nc4 {[%clk 0:00:03.8]} 56... Kf6 {[%clk 0:00:02.5]} 57. g4 {[%clk
0:00:02.7]} 57... hxg4 {[%clk 0:00:02.3]} 58. hxg4 {[%clk 0:00:03]} 58... Kg5
{[%clk 0:00:02.9]} 59. Kxe5 {[%clk 0:00:01.7]} 59... Kxg4 {[%clk 0:00:02.9]} 60.
Kd4 {[%clk 0:00:02]} 60... g5 {[%clk 0:00:03]} 61. Ne5+ {[%clk 0:00:01.4]} 61...
Kh3 {[%clk 0:00:03.1]} 62. Nf3 {[%clk 0:00:01.2]} 62... g4 {[%clk 0:00:03.1]}
63. Ng5+ {[%clk 0:00:01.4]} 63... Kh4 {[%clk 0:00:02.5]} 64. Ne4 {[%clk
0:00:01.2]} 64... Kh3 {[%clk 0:00:03]} 0-1

[Event "Late-Titled-Tuesday-Blitz-September-19-2023"]
[Site "Chess.com"]
[Date "2023.09.19"]
[Round "1"]
[White "MAGMAchess02"]
[Black "hellokostya"]
[Result "1-0"]
[WhiteElo "2358"]
[BlackElo "2603"]
[TimeControl "180+1"]
[EndTime "14:08:44 PDT"]
[Termination "MAGMAchess02 won on time"]

1. Nf3 {[%clk 0:03:00.3]} 1... Nf6 {[%clk 0:02:57.1]} 2. c4 {[%clk 0:02:59.5]}
2... g6 {[%clk 0:02:57.7]} 3. b3 {[%clk 0:02:57.6]} 3... Bg7 {[%clk 0:02:58.6]}
4. Bb2 {[%clk 0:02:58.2]} 4... O-O {[%clk 0:02:58.9]} 5. g3 {[%clk 0:02:59.1]}
5... d6 {[%clk 0:02:59.3]} 6. d4 {[%clk 0:02:59.6]} 6... Nbd7 {[%clk 0:02:58.3]}
7. Bg2 {[%clk 0:02:59.6]} 7... e5 {[%clk 0:02:59]} 8. dxe5 {[%clk 0:03:00.3]}
8... dxe5 {[%clk 0:02:59.8]} 9. O-O {[%clk 0:02:40.8]} 9... e4 {[%clk
0:02:53.9]} 10. Ng5 {[%clk 0:02:28.5]} 10... e3 {[%clk 0:02:50.4]} 11. fxe3
{[%clk 0:02:24.4]} 11... Ng4 {[%clk 0:02:37.4]} 12. Bxg7 {[%clk 0:02:21.8]}
12... Qxg5 {[%clk 0:02:33.8]} 13. Bxf8 {[%clk 0:02:07.2]} 13... Qxe3+ {[%clk
0:02:30.2]} 14. Kh1 {[%clk 0:02:07.4]} 14... Nxf8 {[%clk 0:02:28.6]} 15. Qe1
{[%clk 0:00:51.1]} 15... Qh6 {[%clk 0:02:27.2]} 16. h3 {[%clk 0:00:48.9]} 16...
Ne3 {[%clk 0:02:27.5]} 17. h4 {[%clk 0:00:17.6]} 17... Nxf1 {[%clk 0:02:09.8]}
18. Bxf1 {[%clk 0:00:18.5]} 18... Qe3 {[%clk 0:02:00.1]} 19. Nd2 {[%clk
0:00:18.6]} 19... Bg4 {[%clk 0:01:57.3]} 20. Nf3 {[%clk 0:00:17.1]} 20... Re8
{[%clk 0:01:48.8]} 21. Bg2 {[%clk 0:00:16.9]} 21... c6 {[%clk 0:01:42.8]} 22.
Rd1 {[%clk 0:00:11.4]} 22... Qxe2 {[%clk 0:01:42.5]} 23. Qxe2 {[%clk 0:00:12]}
23... Rxe2 {[%clk 0:01:43.4]} 24. Rd8 {[%clk 0:00:10.6]} 24... Rxa2 {[%clk
0:01:38.1]} 25. Ne5 {[%clk 0:00:09.7]} 25... Be6 {[%clk 0:01:37.2]} 26. Rb8
{[%clk 0:00:09.1]} 26... Re2 {[%clk 0:01:25.3]} 27. Nd3 {[%clk 0:00:06.6]} 27...
Re3 {[%clk 0:01:18.7]} 28. Nc5 {[%clk 0:00:07.2]} 28... Rxg3 {[%clk 0:01:15.7]}
29. Rxb7 {[%clk 0:00:07.5]} 29... Bf5 {[%clk 0:01:05]} 30. Bxc6 {[%clk
0:00:07.6]} 30... Rh3+ {[%clk 0:01:03.5]} 31. Kg2 {[%clk 0:00:08.2]} 31... Rxh4
{[%clk 0:01:04.4]} 32. Rxa7 {[%clk 0:00:07.6]} 32... Rg4+ {[%clk 0:01:01.6]} 33.
Kf2 {[%clk 0:00:08.1]} 33... h5 {[%clk 0:00:59]} 34. Bf3 {[%clk 0:00:04.6]}
34... Rg5 {[%clk 0:00:54.4]} 35. b4 {[%clk 0:00:04.9]} 35... Ne6 {[%clk
0:00:34.2]} 36. Nxe6 {[%clk 0:00:04.1]} 36... Bxe6 {[%clk 0:00:35.1]} 37. c5
{[%clk 0:00:05]} 37... Rf5 {[%clk 0:00:34.6]} 38. Ke3 {[%clk 0:00:05.4]} 38...
h4 {[%clk 0:00:30.7]} 39. c6 {[%clk 0:00:05.9]} 39... h3 {[%clk 0:00:29.4]} 40.
Ra1 {[%clk 0:00:04.1]} 40... Kg7 {[%clk 0:00:26.6]} 41. c7 {[%clk 0:00:04.4]}
41... h2 {[%clk 0:00:24.2]} 42. b5 {[%clk 0:00:02.9]} 42... Rxb5 {[%clk
0:00:23.7]} 43. Rh1 {[%clk 0:00:03.5]} 43... Rb2 {[%clk 0:00:16]} 44. Be4 {[%clk
0:00:02.9]} 44... f5 {[%clk 0:00:14.8]} 45. Bd5 {[%clk 0:00:03.3]} 45... Rc2
{[%clk 0:00:03.9]} 46. Bxe6 {[%clk 0:00:03.2]} 46... Rxc7 {[%clk 0:00:04.8]} 47.
Bd5 {[%clk 0:00:03.6]} 47... Rc2 {[%clk 0:00:04.7]} 48. Bf3 {[%clk 0:00:03.7]}
48... Kf6 {[%clk 0:00:05.1]} 49. Be2 {[%clk 0:00:04.6]} 49... g5 {[%clk
0:00:05]} 50. Rxh2 {[%clk 0:00:05.3]} 50... f4+ {[%clk 0:00:05.9]} 51. Kf3
{[%clk 0:00:05.6]} 51... Rc3+ {[%clk 0:00:06.2]} 52. Kf2 {[%clk 0:00:05.5]}
52... Kf5 {[%clk 0:00:06]} 53. Rh7 {[%clk 0:00:05.2]} 53... g4 {[%clk
0:00:05.7]} 54. Rf7+ {[%clk 0:00:05.6]} 54... Ke5 {[%clk 0:00:05.9]} 55. Bxg4
{[%clk 0:00:05.8]} 55... Rg3 {[%clk 0:00:06.2]} 56. Bf3 {[%clk 0:00:06]} 56...
Rg8 {[%clk 0:00:05.7]} 57. Re7+ {[%clk 0:00:06.5]} 57... Kf6 {[%clk 0:00:05.7]}
58. Ra7 {[%clk 0:00:06.7]} 58... Rb8 {[%clk 0:00:05.4]} 59. Ra6+ {[%clk
0:00:07]} 59... Kf5 {[%clk 0:00:05.5]} 60. Ra5+ {[%clk 0:00:07.5]} 60... Kf6
{[%clk 0:00:05.9]} 61. Kg2 {[%clk 0:00:07.5]} 61... Rg8+ {[%clk 0:00:05.2]} 62.
Kf2 {[%clk 0:00:08]} 62... Rb8 {[%clk 0:00:05.4]} 63. Be4 {[%clk 0:00:08]} 63...
Rb3 {[%clk 0:00:05.1]} 64. Kg2 {[%clk 0:00:07]} 64... Ke6 {[%clk 0:00:04.5]} 65.
Bd5+ {[%clk 0:00:06.2]} 1-0